Cogmind - Beta 17.1 @@@ ROGUE MODE // 2026.08.28 @ 08:22:37 Player: Tuja Result: Destroyed by H-71 Marshal with Heavy Mass Driver Performance ------------- Evolutions (5) 2500 Regions Visited (6) 1200 Robots Destroyed (42) 210 Value Destroyed (1458) 1458 Prototype IDs (8) 160 Alien Tech Used (0) 0 Bonus (7817) 7817 TOTAL SCORE: 13345 Bonus ------- Follower Combat Kills 167 Prayed to X0-1V1 5000 Major X0-1V1 Interference 1850 Registered with UFD 300 Met Optimus in HQ 500 Cogmind --------- Core Integrity 0/1140 Matter 270/700 Energy 583/1000 System Corruption 2% Temperature Cool (0) Movement Hovering (60) Location -5/Factory Parts ------- > --- POWER (1) -------- (None) > --- PROPULSION (4) --- Improved Gravmag System (fused) > --- UTILITY (10) ----- Visual Processing Unit System Shield X0-1V1's Piety Tracker > --- WEAPON (2) ------- Greatsword > --- INVENTORY (5) ---- Improved Signal Interpreter Layered Medium Armor Plating A0-MCA's Component Scanner Plasma Cutter Peak State ------------ > --- POWER ------------ Micro Fission Core > --- PROPULSION ------- Ballwheel > --- UTILITY ---------- High-capacity Storage Unit Visual Processing Unit IFF Parser Damper Plating Makeshift Hacking Suite Makeshift Hacking Suite X0-1V1's Piety Tracker > --- WEAPON ----------- Companion Sword > --- INVENTORY -------- MA-1KR's Cyclogen Centrium Wheel Deep Structural Scanner Improved Sensor Array Improved Signal Interpreter Experimental Terrain Scanner Surveybot 24 Chip Improved Shield Generator A0-MCA's Component Scanner System Guard Drone Bay Mapping Drone Bay Hardcell Cannon Missile Launcher Improved Datajack Plasma Cutter Greatsword Large Botcube [Rating: 96] Favorites ----------- Power Light Deuterium Engine Engine Light Deuterium Engine Power Core Micro Fission Core Reactor MA-1KR's Cyclogen Propulsion Light Treads Treads Light Treads Wheel Compact Wheel Hover Unit Improved Gravmag System Utility X0-1V1's Piety Tracker Device X0-1V1's Piety Tracker Storage High-capacity Storage Unit Processor Visual Processing Unit Hackware Makeshift Hacking Suite Protection Damper Plating Weapon Companion Sword Ballistic Gun Assault Rifle Ballistic Cannon Hardcell Cannon Launcher Grenade Launcher Slashing Weapon Companion Sword Build | -11 -10 -10 -8 -8 -6 -5 ------- Run | Yrd Mat Sub Rec Scr Fac Fac Slots Evolved 10 | . . . . . 8 2 Power . | . . . . . . . Propulsion 2 | . . . . . 2 . Utility 8 | . . . . . 6 2 Weapon . | . . . . . . . Parts Attached 41 | 6 1 7 4 4 5 14 Power 6 | 1 . . 1 1 1 2 Engine 4 | 1 . . 1 1 . 1 Core 1 | . . . . . . 1 Reactor 1 | . . . . . 1 . Propulsion 11 | 2 . 2 2 2 1 2 Treads 4 | 2 . . 2 . . . Leg . | . . . . . . . Wheel 6 | . . 2 . 2 1 1 Hover 1 | . . . . . . 1 Flight . | . . . . . . . Utility 14 | 1 1 1 1 . 3 7 Device 7 | . 1 1 . . 1 4 Storage 2 | 1 . . 1 . . . Processor 1 | . . . . . . 1 Hackware 3 | . . . . . 1 2 Protection 1 | . . . . . 1 . Artifact . | . . . . . . . Weapon 10 | 2 . 4 . 1 . 3 Energy Gun . | . . . . . . . Energy Cannon . | . . . . . . . Ballistic Gun 4 | 2 . 2 . . . . Ballistic Cannon 1 | . . . . . . 1 Launcher 3 | . . 2 . . . 1 Special Weapon . | . . . . . . . Impact Weapon . | . . . . . . . Slashing Weapon 2 | . . . . 1 . 1 Piercing Weapon . | . . . . . . . Special Melee Weapon . | . . . . . . . Unidentified Prototypes 5 | . 1 . . 1 . 3 Parts Lost 20 | . . 5 . 2 . 13 Power 3 | . . 1 . . . 2 Propulsion 6 | . . 2 . 2 . 2 Utility 7 | . . 1 . . . 6 Weapon 4 | . . 1 . . . 3 Highest Loss Streak 12 | . . 4 . 1 . 12 To Critical Strikes . | . . . . . . . Average Backups 13 | 1 5 6 7 15 15 14 Power . | . 1 1 1 . 1 1 Propulsion 1 | 1 2 1 . 1 1 . Utility 5 | . . . . 5 8 7 Weapon 5 | . 2 4 5 7 1 2 Tool/Special . | . . . . . . . Unused Backups 55 | . . . . 24 . 31 Power 3 | . . . . 2 . 1 Propulsion 6 | . . . . 3 . 3 Utility 26 | . . . . 9 . 17 Weapon 17 | . . . . 10 . 7 Tool/Special 3 | . . . . . . 3 Average Slot Usage (%) 71 | . 86 93 85 74 51 47 Engine 11 | . 14 12 3 14 6 3 Treads 8 | . 28 22 17 8 . . Wheel 12 | . . 1 10 17 5 3 Device 12 | . . 12 14 14 12 8 Storage 11 | . 14 14 14 14 6 3 Hackware 1 | . . . . . 5 8 Ballistic Gun 4 | . 28 19 24 . . . Slashing Weapon 4 | . . . . 5 6 4 Peak Build Rating 96 | 6 19 22 25 35 83 96 Average Rating 33 | 4 6 18 21 25 80 71 On Entrance 26 | . 6 19 21 20 34 83 Avg Prop Armor Cover (%) 19 | . . . 14 20 . 17 Naked Turns . | . . . . . . . Heaviest Build 96 | 14 15 17 53 50 96 96 Greatest Support 40 | 40 40 40 40 26 35 35 Greatest Overweight (x) 4 | . . . 3 4 2 2 Average Overweight (x) 1 | . . . 1 1 2 1 Largest Inventory Capacity 20 | 8 8 8 20 20 20 20 Average Capacity 17 | 6 8 8 14 20 20 16 Most Carried 20 | 4 6 8 10 20 20 20 Average Carried 14 | 2 5 6 7 15 15 15 Final Capacity 20 | 8 8 8 20 20 20 5 Final Carried 20 | 4 6 5 10 20 18 4 Class Distribution -------------------- 60% | Commander-Mutant 27% | Mutant 11% | Hacker-Mutant Dominant Class ---------------- Mutant | -10/Materials Mutant | -10/Subcaves Mutant | -8/Recycling Commander-Mutant | -8/Scraptown Mutant | -6/Factory Hacker-Mutant | -5/Factory Resources | -11 -10 -10 -8 -8 -6 -5 ----------- Run | Yrd Mat Sub Rec Scr Fac Fac Matter Collected 1142 | 155 . 205 333 254 . 195 Remotely . | . . . . . . . Salvage Created 1655 | . . 202 251 63 . 1139 Parts 74 | . . 19 11 3 . 41 Haulers Intercepted . | . . . . . . . Recyclers Shooed 5 | . . . . . . 5 Parts Field Recycled . | . . . . . . . Retrieved Matter . | . . . . . . . Parts Self-Destructed 7 | . . 7 . . . . Prevented . | . . . . . . . Parts Restored . | . . . . . . . Kills | -11 -10 -10 -8 -8 -6 -5 ------- Run | Yrd Mat Sub Rec Scr Fac Fac Combat Hostiles Destroyed 32 | . . 11 3 1 . 17 Melee 15 | . . . . 1 . 14 Guns 4 | . . 1 3 . . . AOE 13 | . . 10 . . . 3 Classes Destroyed 13 | . . 4 2 1 . 6 Builder 1 | . . . . . . 1 Recycler 4 | . . . 1 . . 3 Operator 1 | . . . . . . 1 Turret 3 | . . 2 . 1 . . Watcher 1 | . . . . . . 1 Swarmer 10 | . . 4 . . . 6 Saboteur 1 | . . . . . . 1 Grunt 7 | . . 2 . . . 5 Sentry 4 | . . . 3 . . 1 Hunter 2 | . . . . . . 2 Programmer 2 | . . . . . . 2 Subdweller 5 | . . 5 . . . . Federalist 1 | . . . . 1 . . Best Kill Streak 12 | . . 6 4 1 . 12 Combat Bots Only 12 | . . 4 2 1 . 12 Max Kills in Single Turn 3 | . . 2 1 1 . 3 Gunslinging . | . . . . . . . Exploded 2 | . . 2 . . . 2 Melee 1 | . . . . 1 . 1 Uniques/NPCs Destroyed . | . . . . . . . Combat | -11 -10 -10 -8 -8 -6 -5 -------- Run | Yrd Mat Sub Rec Scr Fac Fac Hostile Shots Fired 456 | . 1 95 12 9 . 339 Missed 148 | . 1 41 3 2 . 101 Hits 308 | . . 54 9 7 . 238 Melee 3 | . . . . 3 . . Projectile 305 | . . 54 9 4 . 238 AOE 7 | . . 4 . . . 3 Critical Strikes 6 | . . . . . . 6 Part Disruptions 2 | . . . . . . 2 Damage Taken 5032 | . . 772 129 153 . 3978 Core 1393 | . . 146 15 29 . 1203 Absorbed by Shields 38 | . . . . 38 . . Ignored by Resistances 151 | . . . . . . 151 Core Remaining (%) 85 | 100 . . . 57 100 . Volleys Fired 43 | . . 34 6 . . 3 Largest 2 | . . 2 2 . . 2 Hottest 91 | . . 58 58 . . 91 Shots Fired 69 | . . 51 12 . . 6 Gun 40 | . . 28 12 . . . Cannon 3 | . . . . . . 3 Launcher 26 | . . 23 . . . 3 Special . | . . . . . . . Kinetic 43 | . . 28 12 . . 3 Thermal . | . . . . . . . Explosive 26 | . . 23 . . . 3 Electromagnetic . | . . . . . . . Robot Hit Streak 17 | . . 17 6 . . 8 Robot Miss Streak 3 | . . 3 1 . . . Penetration Max . | . . . . . . . Secondary Targets . | . . . . . . . Shots Hit Robots 103 | . . 37 9 6 . 51 Core Hits 77 | . . 27 4 3 . 43 Critical Kills . | . . . . . . . Critical Parts Destroyed . | . . . . . . . Critical Strikes . | . . . . . . . Melee Attacks 84 | . . . . 9 2 73 Impact . | . . . . . . . Slashing 84 | . . . . 9 2 73 Piercing . | . . . . . . . Sneak Attacks 4 | . . . . . . 4 Combat Hostiles . | . . . . . . . Follow-up Attacks . | . . . . . . . Damage Inflicted 4695 | . . 1317 188 114 . 3076 Guns 491 | . . 303 188 . . . Cannons 124 | . . . . . . 124 Explosions 1927 | . . 1014 . . . 913 Melee 2153 | . . . . 114 . 2039 Ramming . | . . . . . . . Kinetic 615 | . . 303 188 . . 124 Thermal . | . . . . . . . Explosive 1927 | . . 1014 . . . 913 Electromagnetic . | . . . . . . . Impact . | . . . . . . . Slashing 2153 | . . . . 114 . 2039 Piercing . | . . . . . . . Highest Corruption 10 | . . 2 10 . . 2 Average Corruption 2 | . . 2 2 . . 1 Corruption Purged . | . . . . . . . Corruption Blocked . | . . . . . . . Effects 9 | . . 2 5 . . 2 Message Errors 1 | . . . 1 . . . Matter Fused 3 | . . . 3 . . . Heat Flow Errors 2 | . . 1 . . . 1 Energy Discharges 2 | . . . 1 . . 1 Data Loss (major) 1 | . . 1 . . . . Overload Shots . | . . . . . . . Overflow Damage 315 | . . . . . . 315 Projectiles . | . . . . . . . Explosions 68 | . . . . . . 68 Melee 247 | . . . . . . 247 Knockbacks 3 | . . . . . . 3 Impact . | . . . . . . . Kinetic 2 | . . . . . . 2 Secondary 1 | . . . . . . 1 Self-Inflicted Damage 184 | . . 43 . . . 141 Shots 5 | . . 2 . . . 3 Rammed . | . . . . . . . Targets Rammed . | . . . . . . . Kicked . | . . . . . . . Crushed . | . . . . . . . Highest Temperature 148 | . . 145 25 . . 148 Average Temperature 29 | . . 42 10 . . 31 Received Heat Transfer 1418 | . . 216 45 39 . 1118 Siege Activations . | . . . . . . . Martial Activations . | . . . . . . . Shielding Activations . | . . . . . . . Robots Disrupted . | . . . . . . . Combat Hostiles . | . . . . . . . Robots Corrupted . | . . . . . . . Combat Hostiles . | . . . . . . . Parts Fried . | . . . . . . . Impact Corruptions . | . . . . . . . Robots Melted . | . . . . . . . Combat Hostiles . | . . . . . . . Parts Melted . | . . . . . . . Heat Transferred . | . . . . . . . Parts Sabotaged . | . . . . . . . Parts Stolen . | . . . . . . . Parts Stripped . | . . . . . . . Power Chain Reactions . | . . . . . . . Alert | -11 -10 -10 -8 -8 -6 -5 ------- Run | Yrd Mat Sub Rec Scr Fac Fac Maximum Alert Level 2 | . . . . . . 2 Low Security (%) 80 | 100 100 . 100 . 100 62 Level 1 10 | . . . . . . 20 Level 2 9 | . . . . . . 17 Level 3 . | . . . . . . . Level 4 . | . . . . . . . Level 5 . | . . . . . . . High Security . | . . . . . . . Max Security . | . . . . . . . Peak Influence 449 | . 19 . 110 . 176 449 Initial 65 | . . . 64 . . 65 Average 111 | . 3 . 45 . 109 167 Influence Increases 1411 | . 19 230 86 . 214 862 Destroy 0b10 Robot/C 600 | . . 160 60 . 20 360 Destroy 0b10 Robot/NC 40 | . . . 5 . . 35 Destroy Leader 84 | . . 10 . . 10 64 Allied During Kill 15 | . . . . . 6 9 Successful Hack 116 | . 19 . 20 . . 77 Disable Machine 15 | . . . . . . 15 Destroy Structure 65 | . . . 1 . 2 62 Partial Spotted 30 | . . . . . . 30 Lose Combat Pursuer 270 | . . 60 . . . 210 Miscellaneous 176 | . . . . . 176 . Influence Decreases 980 | . 19 96 220 . 80 565 Entered New Map 139 | . . . 70 . . 69 Time Decay 651 | . 19 56 150 . 80 346 Lost Part 170 | . . 40 . . . 130 Lost Ally 20 | . . . . . . 20 Squads Dispatched 12 | . 1 . 1 . 1 9 Investigation 4 | . 1 . 1 . 1 1 Extermination 2 | . . . . . . 2 Reinforcement 4 | . . . . . . 4 Assault 2 | . . . . . . 2 Garrison . | . . . . . . . Intercept . | . . . . . . . Searches Triggered . | . . . . . . . Construction Impeded 1 | . . . . . . 1 Haulers Reinforced . | . . . . . . . Active Scanning Responses . | . . . . . . . Cargo Convoy Interrupts 1 | . . . . . . 1 Stealth | -11 -10 -10 -8 -8 -6 -5 --------- Run | Yrd Mat Sub Rec Scr Fac Fac Distress Signals 3 | . 1 . . . . 2 Communications Jammed . | . . . . . . . Distress Signals . | . . . . . . . Times Spotted 94 | . 2 15 4 12 . 61 Peak Tracking Total 13 | . 3 6 2 4 . 13 Tactical Retreats 7 | . . 1 . . . 6 Traps | -11 -10 -10 -8 -8 -6 -5 ------- Run | Yrd Mat Sub Rec Scr Fac Fac Traps Triggered 1 | . 1 . . . . . Indirectly . | . . . . . . . Trap Hack Attempts . | . . . . . . . Triggered . | . . . . . . . Disarmed . | . . . . . . . Reprogrammed . | . . . . . . . Reused . | . . . . . . . Traps Extracted . | . . . . . . . Installed . | . . . . . . . Triggered . | . . . . . . . Most Traps Carried 1 | . . . . 1 . . Machines | -11 -10 -10 -8 -8 -6 -5 ---------- Run | Yrd Mat Sub Rec Scr Fac Fac Machines Disabled 8 | . . 3 . 4 . 1 Max in Single Turn 3 | . . 3 . 1 . 1 Garrison Access 1 | . . . . . . 1 Machines Repaired . | . . . . . . . Machines Dismantled . | . . . . . . . Machines Sabotaged . | . . . . . . . Overloaded Fab Kills . | . . . . . . . Hacking | -11 -10 -10 -8 -8 -6 -5 --------- Run | Yrd Mat Sub Rec Scr Fac Fac Machines Accessed 21 | . 2 . 5 3 3 8 Terminals 8 | . 2 . 3 . . 3 Fabricators 6 | . . . . . 1 5 Repair Stations . | . . . . . . . Recycling Units 4 | . . . 2 . 2 . Scanalyzers . | . . . . . . . Garrison Access . | . . . . . . . Total Hacks 72 | . 5 . 13 31 7 16 Successful 53 | . 2 . 9 31 3 8 Failed 19 | . 3 . 4 . 4 8 Catastrophic . | . . . . . . . Database Lockouts . | . . . . . . . Manual 26 | . 4 . 5 . 4 13 Terminals 20 | . 5 . 9 . . 6 Fabricators 13 | . . . . . 3 10 Repair Stations . | . . . . . . . Recycling Units 8 | . . . 4 . 4 . Scanalyzers . | . . . . . . . Garrison Access . | . . . . . . . Terminal Hacks 38 | . 1 . 4 31 . 2 Record 30 | . . . . 30 . . Part Schematic 1 | . . . 1 . . . Robot Analysis 1 | . . . 1 . . . Open Door 1 | . . . . 1 . . Level Access Points 1 | . . . . . . 1 Branch Access Points 1 | . 1 . . . . . Emergency Access Points 1 | . . . 1 . . . Locate Traps 1 | . . . . . . 1 Zone Layout 1 | . . . 1 . . . Fabricator Hacks 3 | . . . . . 2 1 Network Status 1 | . . . . . . 1 Load Schematic 1 | . . . . . 1 . Build 1 | . . . . . 1 . Repair Station Hacks . | . . . . . . . Recycling Unit Hacks 3 | . . . 3 . . . Retrieve Components 3 | . . . 3 . . . Scanalyzer . | . . . . . . . Garrison Access Hacks . | . . . . . . . Unauthorized Hacks 8 | . 1 . 2 . . 5 Terminals 4 | . 1 . 2 . . 1 Botnet 4 | . 1 . 2 . . 1 Fabricators 4 | . . . . . . 4 Fabnet 4 | . . . . . . 4 Repair Stations . | . . . . . . . Recycling Units . | . . . . . . . Scanalyzers . | . . . . . . . Garrison Access . | . . . . . . . Data Cores Recovered . | . . . . . . . Used . | . . . . . . . Hacking Detections 13 | . 2 . 3 . 3 5 Full Trace Events 2 | . . . . . 1 1 Feedback Events . | . . . . . . . Feedback Blocked . | . . . . . . . Robot Schematics Acquired . | . . . . . . . Robots Built . | . . . . . . . Authchips . | . . . . . . . Time . | . . . . . . . Total Robot Build Rating . | . . . . . . . Part Schematics Acquired 1 | . . . 1 . . . Parts Built 2 | . . . . . 2 . Authchips . | . . . . . . . Time 31 | . . . . . 31 . Total Part Build Rating 4 | . . . . . 4 . Part Studies Acquired . | . . . . . . . Parts Repaired . | . . . . . . . Time . | . . . . . . . Parts Recycled . | . . . . . . . Recycled Matter . | . . . . . . . Retrieved Matter . | . . . . . . . Retrieved Components 3 | . . . 3 . . . Parts Scanalyzed . | . . . . . . . Part Schematics Acquired . | . . . . . . . Parts Damaged . | . . . . . . . Bothacking | -11 -10 -10 -8 -8 -6 -5 ------------ Run | Yrd Mat Sub Rec Scr Fac Fac Used RIF Installer . | . . . . . . . Robots Hacked . | . . . . . . . Non-combat . | . . . . . . . Combat . | . . . . . . . Robot Hacks Applied . | . . . . . . . Relay Couplers Released 2 | . . . . . . 2 Machine Destruction 2 | . . . . . . 2 Fabnet Peak Effective % . | . . . . . . . Robots Rewired 5 | . . . 5 . . . Allies Hacked . | . . . . . . . Hacks Repelled . | . . . . . . . Allies | -11 -10 -10 -8 -8 -6 -5 -------- Run | Yrd Mat Sub Rec Scr Fac Fac Total Allies 7 | . . . 5 1 . 1 Largest Group 6 | . . . 5 6 3 2 Highest-Rated Group 169 | . . . 101 169 105 79 Highest-Rated Ally 79 | . . . 27 68 68 79 Total Orders 13 | . . . . 9 2 2 STAY 6 | . . . . 5 . 1 ROAM 1 | . . . . . 1 . FOLLOW 6 | . . . . 4 1 1 Ally Attacks 19 | . . . . 8 1 10 Total Damage 1002 | . . . . 493 50 459 Kills 9 | . . . . 6 1 2 Allies Corrupted . | . . . . . . . Allies Melted 4 | . . . . 3 . 1 X0-1V1 Amusement Gains 209 | . 25 30 . 99 . 55 Average Entertainment 40 | . 25 13 23 98 40 41 Good Acts 20 | . . 2 3 1 . 14 Bad Acts 9 | . . 1 3 . 2 3 Intel | -11 -10 -10 -8 -8 -6 -5 ------- Run | Yrd Mat Sub Rec Scr Fac Fac Active Infowar (turns) 1119 | . . . . . 212 907 Optics 847 | . . . . . . 847 IFF 864 | . . . . . 212 652 Terrain 2 | . . . . . . 2 Robot Analysis Total 1 | . . . 1 . . . Derelict Logs Recovered 2 | . . 1 . 1 . . Drone Launches . | . . . . . . . Drone Recoveries . | . . . . . . . Exploration | -11 -10 -10 -8 -8 -6 -5 ------------- Run | Yrd Mat Sub Rec Scr Fac Fac Turns Passed 5527 | 80 139 422 390 3370 219 907 Spaces Moved 3767 | 44 52 215 216 2223 184 833 Core 174 | 2 . . . . . 172 Treads 369 | 42 52 187 88 . . . Legs . | . . . . . . . Wheels 3057 | . . 28 128 2223 184 494 Hover 167 | . . . . . . 167 Flight . | . . . . . . . Fastest Speed 50 | 50 160 90 90 105 70 50 Average Speed 113 | 155 160 150 140 126 70 65 Slowest Speed 160 | 160 160 160 160 145 70 130 Overloaded Moves . | . . . . . . . Propulsion Burnouts . | . . . . . . . Robots Hopped . | . . . . . . . Potential Cave-ins . | . . . . . . . Cave-ins Triggered . | . . . . . . . Exploration Rate (%) 26 | 5 16 15 49 70 4 29 Regions Visited 6 Branch Regions 3 Pre-discovered Areas 3 | . . . . 3 . . Known Exits Taken 2 | . . . . 1 1 . Unknown Exits Taken 4 | 1 1 1 1 . . . Scrap Searched 6 | . . . . 6 . . Spaces Dug 9 | . . . . . 2 7 Terrain Destroyed 125 | . . 80 1 . 2 42 Melee 9 | . . . . . 2 7 Projectile 1 | . . . 1 . . . AOE 115 | . . 80 . . . 35 Terrain Rammed . | . . . . . . . Walls Destroyed . | . . . . . . . Machines Disabled . | . . . . . . . Actions | -11 -10 -10 -8 -8 -6 -5 --------- Run | Yrd Mat Sub Rec Scr Fac Fac Total 4852 | 53 107 261 292 2780 270 1089 Wait 736 | . 53 4 19 453 70 137 Move 3761 | 43 51 214 215 2222 183 833 Hop . | . . . . . . . Pick Up 76 | 4 2 1 1 47 8 13 Fast Attach 19 | 6 1 1 3 2 . 6 Attach 16 | . . 3 . 2 4 7 Detach 6 | . . . 4 . . 2 Swap 10 | . . 3 2 1 2 2 Drop 61 | . . 1 2 44 1 13 Fire 43 | . . 34 6 . . 3 Melee 84 | . . . . 9 2 73 Ram . | . . . . . . . Kick . | . . . . . . . Crush . | . . . . . . . Escape Stasis . | . . . . . . . Rewire 40 | . . . 40 . . . Trap . | . . . . . . . Miscellaneous . | . . . . . . . Route ------- -11/Scrapyard -10/Materials (discovered 3 exits: *Min x2 / [*Sub]) -10/Subcaves -8/Recycling -8/Scraptown -6/Factory (discovered 7 exits: *Fac x4 / Low / Ext x2) -5/Factory (discovered 4 exits: Fac x4) History --------- Turn | Location | Event 10 | -11/Scrapyard | Discovered new exit (range 13) 81 | -11/Scrapyard | Entered Materials 128 | -10/Materials | Identified exit to Mines 166 | -10/Materials | Discovered new exit (range 3) 215 | -10/Materials | Prayed at D.C.S.S. Altar Unit 220 | -10/Materials | Entered Subcaves 312 | -10/Subcaves | Build established: Mutant 329 | -10/Subcaves | Ambushed by Subdweller buried in earth 350 | -10/Subcaves | Ambushed by Subdweller buried in earth 570 | -10/Subcaves | Learned Materials trap positions 578 | -10/Subcaves | Discovered new exit (range 15) 581 | -10/Subcaves | Core integrity fell below 50% 633 | -10/Subcaves | Lost 4 parts (1p1n1u1w) 642 | -10/Subcaves | Entered Recycling 845 | -8/Recycling | Core integrity permanently improved by X0-1V1 (+200) 873 | -8/Recycling | X0-1V1 caused items to flee you 977 | -8/Recycling | Scanned before Scraplab entrance 997 | -8/Recycling | Entered Scraplab 1010 | -8/Recycling | Discovered new exit (range 2) 1019 | -8/Recycling | System corruption reached 10% 1032 | -8/Recycling | Entered Scraptown 1032 | -8/Scraptown | Accompanied by 5 allies 1032 | -8/Scraptown | System corruption cleaned by C-Scrubber 1174 | -8/Scraptown | Build established: Commander-Mutant 1216 | -8/Scraptown | Visited Cyclists 1268 | -8/Scraptown | Scanned Subdweller tech in exchange for log data 1272 | -8/Scraptown | Learned location of 1 exit from Lower Caves 1336 | -8/Scraptown | Visited Red Mages 1363 | -8/Scraptown | Visited Assassins FH 1380 | -8/Scraptown | Visited Bundlers 1439 | -8/Scraptown | Visited UFD Registry 1439 | -8/Scraptown | Registered with UFD as "Fluxsink" 1456 | -8/Scraptown | Visited Awakened 1463 | -8/Scraptown | Visited Fellowship of the Rings 1528 | -8/Scraptown | Entered Cyclist Reading Room 1647 | -8/Scraptown | Visited Sword Containment 1666 | -8/Scraptown | Visited Botcube Research 1684 | -8/Scraptown | Visited A0-MCA Data Center 1692 | -8/Scraptown | Given a C rating by A0-MCA 1695 | -8/Scraptown | Found A0-MCA's Component Scanner 1717 | -8/Scraptown | Visited Junk Repository 1768 | -8/Scraptown | Visited Research Penetration Think Tank 1799 | -8/Scraptown | Visited Observation Area 1811 | -8/Scraptown | Visited Cartography Club 1893 | -8/Scraptown | Found Deep Structural Scanner 1907 | -8/Scraptown | Learned location of Upper Caves (-5) 1907 | -8/Scraptown | Learned location of Extension (-6) 1907 | -8/Scraptown | Learned 12 Materials zone layouts 1907 | -8/Scraptown | Learned 12 Factory zone layouts 1907 | -8/Scraptown | Learned 24 Factory zone layouts 1907 | -8/Scraptown | Learned 12 Research zone layouts 1907 | -8/Scraptown | Learned 4 Access zone layouts 1907 | -8/Scraptown | Learned 12 Proximity Caves zone layouts 1907 | -8/Scraptown | Learned 4 Mines zone layouts 1907 | -8/Scraptown | Learned 16 Proximity Caves zone layouts 1907 | -8/Scraptown | Learned 20 Proximity Caves zone layouts 1907 | -8/Scraptown | Learned 24 Proximity Caves zone layouts 1907 | -8/Scraptown | Learned Storage emergency access door positions 1907 | -8/Scraptown | Learned location of 1 exit from Factory 1907 | -8/Scraptown | Learned location of 2 exits from Factory 1907 | -8/Scraptown | Learned location of 2 exits from Lower Caves 2038 | -8/Scraptown | Visited Chapter 10 2060 | -8/Scraptown | Visited Curators Association 2113 | -8/Scraptown | Visited Scrapoid Pod Storage 2206 | -8/Scraptown | Found Lrg. Botcube 3068 | -8/Scraptown | Found Prototype Slashing Weapon 3126 | -8/Scraptown | Identified Companion Sword 3621 | -8/Scraptown | Lrg. Botcube activated 3651 | -8/Scraptown | Lrg. Botcube completed mutation into treaded form, armed with 3 guns, 1 cannon 3784 | -8/Scraptown | Met Optimus 3784 | -8/Scraptown | Accepted into 0bPrime 4184 | -8/Scraptown | Civil war broke out across Scraptown 4198 | -8/Scraptown | Found Surveybot 24 Chip 4213 | -8/Scraptown | Found MA-1KR's Cyclogen 4223 | -8/Scraptown | Found Ballwheel 4233 | -8/Scraptown | Identified exit to Factory 4233 | -8/Scraptown | X0-1V1 revealed exit location to -6/Factory 4237 | -8/Scraptown | Found Damper Plating 4254 | -8/Scraptown | Lost 6 allies 4360 | -8/Scraptown | Optimus destroyed in the chaos of civil war 4385 | -8/Scraptown | Lost 7 allies 4402 | -8/Scraptown | Entered Factory 4402 | -6/Factory | Accompanied by 3 allies 4402 | -6/Factory | Evolved 8 slots: Propulsion x2, Utility x6 4403 | -6/Factory | Identified exit to Lower Caves 4404 | -6/Factory | Identified exit to Factory 4404 | -6/Factory | Identified exit to Extension 4451 | -6/Factory | X0-1V1 added 0b10 threat records associated with you (considerable) 4458 | -6/Factory | Fabricated Plasma Cutter (x2) 4504 | -6/Factory | Build established: Mutant 4621 | -6/Factory | Entered another Factory area 4621 | -5/Factory | Accompanied by 2 allies 4621 | -5/Factory | Evolved 2 slots: Utility x2 4638 | -5/Factory | Melee accuracy permanently improved by X0-1V1 (+6%; -60 max core) 4726 | -5/Factory | Identified exit to Factory 4726 | -5/Factory | X0-1V1 revealed exit location to -4/Factory 4836 | -5/Factory | X0-1V1 announced a LAN party 4898 | -5/Factory | X0-1V1 sent you to a vault 4912 | -5/Factory | Found Prototype Device 4913 | -5/Factory | Identified Exp. Terrain Scanner 4916 | -5/Factory | Found Prototype Device 4916 | -5/Factory | Identified Exp. ECM Suite 4943 | -5/Factory | Build established: Hacker-Mutant 5230 | -5/Factory | Found Lrg. Botcube 5240 | -5/Factory | X0-1V1 activates XOMVISION 5241 | -5/Factory | Cargo convoy interrupted 5247 | -5/Factory | Destroyed 12 combat bots 5305 | -5/Factory | Core integrity fell below 50% 5327 | -5/Factory | Core integrity fell below 20% 5355 | -5/Factory | Lost 12 parts (1p2n6u3w) 5372 | -5/Factory | X0-1V1 whisked you away to safety 5397 | -5/Factory | X0-1V1 foreshadows a heat wave 5402 | -5/Factory | X0-1V1 activates XOMVISION 5524 | -5/Factory | X0-1V1 sent allied Chaos Knight 2.0 (x1) 5526 | -5/Factory | Ambient heat levels rising (+10) 5528 | -5/Factory | Destroyed by H-71 Marshal with Heavy Mass Driver Last Messages --------------- 05511_ Sensor data returns to normal. 05524_ The cosmic winds blow in a new direction. Jiyva form resolidifies at new position. 05525_ Jiyva: "What a fine cycle to cause some chaos!" 05525_ C-45 Heavy ARC bursts open, deploying its payload. 05525_ G-67 Veteran unfolds itself. 05525_ L-41 Fighter unfolds itself. 05525_ B-60 Warrior unfolds itself. 05525_ G-50 Soldier unfolds itself. 05525_ M-28 Smith unfolds itself. 05525_ Critical hit (Burn: +37). 05526_ ALERT: Sterilization system anomaly impacting ambient heat levels +10. 05526_ Slug penetrates P-70 Sage. 05526_ P-70 Sage suffers critical hit (Blast). 05526_ P-70 Sage knocked back. 05528_ Penetrated by Slug. 05528_ X0-1V1 bursts into laughter! Map ----- +----------------------------------------------------+ | ????????????????????????????????? | | ????????????????????????????????? | | ????????????????????????????????? | | ????????????????????????????????? | | ????????????????????????????????? | | ????????????????????????????????? | | ????????????????????????????????? | | ????????????????????????????????? | | ????????????????????????????????? | | ????????????????????????????????? | | ????????????????????????????????? | | ????????????????????????????????? | | ????????????????????????????????? | | ????? ??????????????????????? | | ????# #?????????????????????? | | ????# #?????????????????????? | | ????# #???????#+#???###?????? | | ????# #???????# #???# ?????? | | ????# #???????# #???# """"??? | | ????# #???????# #???# """"??? | | ????# #???????# #???# """" ?? | | ????# #???????# #???# """" ? | | ????# ######### ##### """" # | | ##### # """" /# | | # """" # | | /@ # | | ? # """" =# | | ????# # """" # | | ????# # """" # | | ????# # """" ? | | ????#H # """" ?? | | ????# ###### ##########"# """"??? | | ????# #????# #????????#%# """"??? | | ????# #????# #????????#"# ?????? | | #####+##???# #????????# ###?????? | | !! #???# #????????# #???????? | | "" " #???# #????????# #???????? | | " " #???# #???????? ???????? | | " " #???# #???????? ???????? | | #???# #???????? " ???????? | | =! """ #???? ????????? ???????? | | !! """ #???? ????????? ???????? | | ! """ +???? ????????? ???????? | | #???? ????????? #??????? | | ##### ##???? ????????? ???????? | | ?????##????? ????????? ???????? | | ???????????? ????????? ???????? | | ???????????? ?????????!? ???